{"text_format":"2","workbook":"xlsx","n_sheets":1,"sheets":["Catering_E"],"not_rendered":{"charts":0,"images":1,"macros":0,"external_links":0,"defined_names":9,"comments":0,"pivot_tables":0},"unopened":[],"bounds":{"document_bytes":16777216,"sheet_cells":100000,"run_cost":"one","rows_first":2000,"rows_last":500,"rows_between":2000,"halvings":0,"cell_chars":16384,"cell_head_chars":4096},"cells_cut":0,"cells_raw":0,"read":"whole","date_system":"1900"}

{"sheet":"Catering_E","index":0,"n_rows":155,"n_cols":6,"rows_kept":155,"cut":false,"hidden":false,"merged":[[154,1,154,5],[153,1,153,5],[151,1,151,5],[152,1,152,5],[147,2,149,4],[145,2,145,4],[10,3,14,5],[9,3,9,5],[17,1,17,4],[26,1,26,4],[29,1,29,4],[40,1,40,4],[39,0,39,5],[16,0,16,5],[0,0,0,5],[98,13,98,15],[99,13,99,15],[142,2,144,4],[1,3,1,5],[82,1,82,4],[95,1,95,4],[102,1,102,4],[110,1,110,4],[118,1,118,4],[122,0,122,5],[130,1,130,4],[2,4,2,5],[3,4,3,5],[4,4,4,5],[5,4,5,5]]}
["Catering-Auftrag"]
[null,"Bestellt durch:",null,"!!!Nicht als PDF speichern - Excel nicht Passwortschützen!!!"]
["Name, Vorname"," ",null,"Bewirtungstag"]
["Zusatz",null,null,"Personenanzahl"]
["Straße",null,null,"Uhrzeit"]
["PLZ, Ort",null,null,"Standort"]
["Telefonnummer"]
["E-Mail "]
[null,"endgültige Rechnungsanschrift (MUSS ausgefüllt werden)",null,"Diese Adresse kann  nicht mehr geändert werden"]
["Adressat",null,null,"Notizfläche"]
[]
["Adresse"]
[]
[]
["Kostenstelle"]
["Verbrauch","Artikel","Stückzahl","Preis ","Summe","Anmerkungen"]
["Getränke"]
[null,"alkoholische Getränke (Vorlauf von 10 Arbeitstagen)"]
[null,"Pils 24 x 0,33 l (je Kiste)",null,39,{"$f":"(C19*D19)","v":0},"Nur Kisten, Keine Kommission"]
[null,"Helles 24 x 0,33 l (je Kiste)",null,39,{"$f":"(C20*D20)","v":0},"Nur Kisten, Keine Kommission"]
[null,"Radler 24 x 0,33 l (je Kiste)",null,39,{"$f":"(C21*D21)","v":0},"Nur Kisten, Keine Kommission"]
[null,"Winzersekt 6 x 0,7 l (je Kiste)",null,89,{"$f":"(C22*D22)","v":0},"Nur Kisten, Keine Kommission"]
[null,"Winzersecco 6 x 0,7 l (je Kiste)",null,54,{"$f":"(C23*D23)","v":0},"Nur Kisten, Keine Kommission"]
[null,"Rotwein 6 x 0,7 l (je Kiste)",null,69,{"$f":"(C24*D24)","v":0},"Nur Kisten, Keine Kommission"]
[null,"Weißherbst / Rose 6 x 0,7 l (je Kiste)",null,54,0,"Nur Kisten, Keine Kommission"]
[null,"Weißwein 6 x 0,7 l (je Kiste)",null,69,{"$f":"(C26*D26)","v":0},"Nur Kisten, Keine Kommission"]
[null,"Kaffee & Tee"]
[null,"Kanne Kaffee (Pumpkanne 16 Tassen)",null,16.5,{"$f":"(C28*D28)","v":0}]
[null,"Kanne heißes Wasser und Teeauswahl (7 Tassen)",null,10.5,0]
[null,"Wasser / Säfte / Softdrinks"]
[null,"Mineralwasser, spritzig 1 l (12 Fla. Je Kasten)",null,1.9,{"$f":"(C31*D31)","v":0},"plus 0,15 € Pfand bei Verlust"]
[null,"Mineralwasser, medium 1 l (12 Fla. Je Kasten)",null,1.9,0,"plus 0,15 € Pfand bei Verlust"]
[null,"Mineralwasser, naturell 1 l (12 Fla. Je Kasten)",null,1.9,{"$f":"(C33*D33)","v":0},"plus 0,15 € Pfand bei Verlust"]
[null,"Apfelsaft 0,2 l",null,1.5,0,"plus 0,15 € Pfand bei Verlust"]
[null,"Orangensaft 0,2 l",null,1.5,{"$f":"(C35*D35)","v":0},"plus 0,15 € Pfand bei Verlust"]
[null,"Johannisbeernektar 0,2 l",null,1.5,0,"plus 0,15 € Pfand bei Verlust"]
[null,"Mezzo Mix 0,5 l ",null,2.2000000000000002,{"$f":"(C37*D37)","v":0},"plus 0,25 € Pfand bei Verlust"]
[null,"Coca Cola  0,5 l",null,2.2000000000000002,0,"plus 0,25 € Pfand bei Verlust"]
[null,"Cola zero 0,5 l",null,2.2000000000000002,0,"plus 0,25 € Pfand bei Verlust"]
["Speisen"]
[null,"belegte Waren"]
[null,"½ Weizenrötchen mit Schnittkäse",null,2.6,{"$f":"(C42*D42)","v":0},"Glatte Zahlen nennen (2,4,6…)"]
[null,"½ Weizenrötchen mit Weichkäse",null,2.6,0,"Glatte Zahlen nennen (2,4,6…)"]
[null,"½ Weizenbrötchen mit Frischkäse",null,2.6,0,"Glatte Zahlen nennen (2,4,6…)"]
[null,"½ Weizenbrötchen mit Geflügelsalami",null,2.6,0,"Glatte Zahlen nennen (2,4,6…)"]
[null,"½ Weizenbrötchen mit Schinken (gekocht)",null,2.6,0,"Glatte Zahlen nennen (2,4,6…)"]
[null,"½ Weizenbrötchen mit Putenbrust",null,2.6,0,"Glatte Zahlen nennen (2,4,6…)"]
[null,"½ Weizenbrötchen mit Schinken (roh)",null,3.2,0,"Glatte Zahlen nennen (2,4,6…)"]
[null,"½ Weizenbrötchen mit Geflügelbruststreifen",null,3.2,{"$f":"(C49*D49)","v":0},"Glatte Zahlen nennen (2,4,6…)"]
[null,"½ Weizenbrötchen mit Forellenfilets",null,3.2,0,"Mindestbestellmenge 16 Stück"]
[null,"½ Weizenbrötchen mit Lachs",null,3.2,0,"Mindestbestellmenge 16 Stück"]
[null,"½ Mehrkornbrötchen mit Schnittkäse",null,2.8,{"$f":"(C52*D52)","v":0},"Glatte Zahlen nennen (2,4,6…)"]
[null,"½ Mehrkornbrötchen mit Weichkäse",null,2.8,0,"Glatte Zahlen nennen (2,4,6…)"]
[null,"½ Mehrkornbrötchen mit Frischkäse",null,2.8,0,"Glatte Zahlen nennen (2,4,6…)"]
[null,"½ Mehrkornbrötchen mit Geflügelsalami",null,2.8,0,"Glatte Zahlen nennen (2,4,6…)"]
[null,"½ Mehrkornbrötchen mit Schinken (gekocht)",null,2.8,0,"Glatte Zahlen nennen (2,4,6…)"]
[null,"½ Mehrkornbrötchen mit Putenbrust",null,2.8,0,"Glatte Zahlen nennen (2,4,6…)"]
[null,"½ Mehrkornbrötchen mit Schinken (roh)",null,3.4,0,"Glatte Zahlen nennen (2,4,6…)"]
[null,"½ Mehrkornbrötchen mit Geflügelbruststreifen",null,3.4,0,"Glatte Zahlen nennen (2,4,6…)"]
[null,"½ Mehrkornbrötchen mit Forellenfilets",null,3.4,0,"Mindestbestellmenge 16 Stück"]
[null,"½ Mehrkornbrötchen mit Lachs",null,3.4,0,"Mindestbestellmenge 16 Stück"]
[null,"½ Laugenstange mit Schnittkäse",null,3,{"$f":"(C62*D62)","v":0},"Glatte Zahlen nennen (2,4,6…)"]
[null,"½ Laugenstange mit Weichkäse",null,3,0,"Glatte Zahlen nennen (2,4,6…)"]
[null,"½ Laugenstange mit Frischkäse",null,3,0,"Glatte Zahlen nennen (2,4,6…)"]
[null,"½ Laugenstange mit Geflügelsalami",null,3,0,"Glatte Zahlen nennen (2,4,6…)"]
[null,"½ Laugenstange mit Schinken (gekocht)",null,3,{"$f":"(C66*D66)","v":0},"Glatte Zahlen nennen (2,4,6…)"]
[null,"½ Laugenstange mit Putenbrust",null,3,0,"Glatte Zahlen nennen (2,4,6…)"]
[null,"½ Laugenstange mit Schinken (roh)",null,3.6,{"$f":"(C68*D68)","v":0},"Glatte Zahlen nennen (2,4,6…)"]
[null,"½ Laugenstange mit Geflügelbruststreifen",null,3.6,0,"Glatte Zahlen nennen (2,4,6…)"]
[null,"½ Laugenstange mit Forellenfilets",null,3.6,0,"Mindestbestellmenge 16 Stück"]
[null,"½ Laugenstange mit Lachs",null,3.6,0,"Mindestbestellmenge 16 Stück"]
[null,"Brezel",null,1.3,{"$f":"(C72*D72)","v":0}]
[null,"Butterbrezel",null,1.8,0]
[null,"½ Wraps mit Feta",null,3.9,{"$f":"(C74*D74)","v":0},"Glatte Zahlen nennen (2,4,6…)"]
[null,"½ Wraps mit Tunfisch",null,3.9,0,"Glatte Zahlen nennen (2,4,6…)"]
[null,"½ Wraps mit Hähnchenbrust",null,3.9,{"$f":"(C76*D76)","v":0},"Glatte Zahlen nennen (2,4,6…)"]
[null,"½ Wraps mit Schinken",null,3.9,0,"Glatte Zahlen nennen (2,4,6…)"]
[null,"½ Wraps mit Gemüse (vegan)",null,3.9,0,"Glatte Zahlen nennen (2,4,6…)"]
[null,"½ Wraps mit Falafel (vegan)",null,3.9,{"$f":"(C79*D79)","v":0},"Glatte Zahlen nennen (2,4,6…)"]
[null,"½ Kutscherbrötchen mit Rote-Beete-Patty  (vegan)",null,3.4,0,"Glatte Zahlen nennen (2,4,6…)"]
[null,"½ Kutscherbrötchen mit Hanfpatty  (vegan)",null,3.4,0,"Glatte Zahlen nennen (2,4,6…)"]
[null,"½ Kutscherbrötchen mit Quinoa-Erbsen-Patty  (vegan)",null,3.4,0,"Glatte Zahlen nennen (2,4,6…)"]
[null,"Fingerfood  (Mindestbestellmenge 20 Stück)"]
[null,"Mini Frikadellen (Rind und Schwein)",null,1.2,{"$f":"(C84*D84)","v":0},"Mindestbestellmenge 20 Stück"]
[null,"Riesengarnelen Butterfly paniert, mit Dip",null,1.5,0,"Mindestbestellmenge 20 Stück"]
[null,"Chicken Crossies paniert, mit Dip",null,1.3,0,"Mindestbestellmenge 20 Stück"]
[null,"Mozzarellasticks im Glas",null,1.4,0,"Mindestbestellmenge 20 Stück"]
[null,"Gemüsesticks im Glas mit Dips",null,2.9,0,"Mindestbestellmenge 20 Stück"]
[null,"Mini Flammkuchen",null,1.4,0,"Mindestbestellmenge 20 Stück"]
[null,"Mini Pizza Salami",null,1.4,0,"Mindestbestellmenge 20 Stück"]
[null,"Mini Pizza Schinken",null,1.4,0,"Mindestbestellmenge 20 Stück"]
[null,"Mini Pizza Tomate-Mozzarella",null,1.4,0,"Mindestbestellmenge 20 Stück"]
[null,"Mini Häppchen vegetarisch",null,1.4,0,"Mindestbestellmenge 20 Stück"]
[null,"Mini Häppchen mit Schinken",null,1.4,0,"Mindestbestellmenge 20 Stück"]
[null,"Mini Laugengebäck Mix",null,1.2,0,"Mindestbestellmenge 20 Stück"]
[null,"Dessert / süße Teilchen"]
[null,"Obst, je Stück",null,1,{"$f":"(C97*D97)","v":0}]
[null,"Frischer Obstsalat im Gläschen",null,2.5,0,"Mindestbestellmenge 20 Stück"]
[null,"Mini Butterplunder gemischt",null,1.4,0]
[null,"Teegebäck 500g",null,9,0]
[null,"Muffins gemischt",null,2.5,0,"Mindestbestellmenge 10 Stück"]
[null,"Donut ungefüllt/gefüllt",null,2.2000000000000002,{"$f":"(C102*D102)","v":0},"Mindestbestellmenge 10 Stück"]
[null,"Kuchen"]
[null,"Apfel-Nuss-Kuchen (vegan)",null,2.1,{"$f":"(C104*D104)","v":0}]
[null,"Apfel-Butterstreusel-Blechkuchen ",null,1.9,{"$f":"(C105*D105)","v":0}]
[null,"Kirsch-Sand-Blechkuchen ",null,1.9,{"$f":"(C106*D106)","v":0}]
[null,"Mohn-Streusel-Blechkuchen ",null,1.9,0]
[null,"Rhabarber-Erdbeer-Blechkuchen ",null,1.9,0]
[null,"Russischer Zupfkuchen Blech ",null,1.9,0]
[null,"Schoko-Kokos-Blechkuchen ",null,1.9,0]
[null,"Suppen und Eintöpfe mit Brot nach Saison"]
[null,"Gulaschsuppe (pro Portion)",null,5.5,{"$f":"(C112*D112)","v":0},"Mindestbestellmenge 20 Port."]
[null,"Brokkolisuppe (pro Portion)",null,5.5,0,"Mindestbestellmenge 20 Port."]
[null,"Kürbis-Kartoffelsuppe (pro Portion)",null,5.5,0,"Mindestbestellmenge 20 Port."]
[null,"Kartoffel-Gemüsesuppe (pro Portion)",null,5.5,0,"Mindestbestellmenge 20 Port."]
[null,"Gemüsecremesuppe (pro Portion)",null,5.5,0,"Mindestbestellmenge 20 Port."]
[null,"Vegane Suppe (pro Portion)",null,5.5,0,"Mindestbestellmenge 20 Port."]
[null,"Eintopf (pro Portion)",null,5.5,0,"Mindestbestellmenge 20 Port."]
[null,"Mittagessen in der Mensa"]
[null,"Studierende",null,4,{"$f":"(C120*D120)","v":0},"Abholung am Schalter"]
[null,"Gäste",null,6.36,{"$f":"(C121*D121)","v":0},"Abholung am Schalter"]
[null,"Buffets auf Anfrage (ab 20 Personen, ab 25,00 € pro Person)",null,null,{"$f":"(C122*D122)","v":0}]
["Sonstiges"]
[null,"Tischdecke ",null,5,{"$f":"(C124*D124)","v":0}]
[null,"Stehtischhussen (nur für Landau)",null,7,{"$f":"(C125*D125)","v":0}]
[null,"Stehtische (nur für Landau)",null,8,{"$f":"(C126*D126)","v":0}]
[null,"Lieferfahrzeug (pro angefangene KM / nur LD und LU!)",null,1.5,{"$f":"(C127*D127)","v":0}]
[null,"Personalkosten: Servicekraft (pro angefangene Stunde)",null,45,{"$f":"(C128*D128)","v":0}]
[null,"Personalkosten: Koch (pro angefangene Stunde)",null,50,0]
[null,"Personalkosten: Küchenleiter (pro angefangene Stunde)",null,60,0]
[null,"Extras"]
[{"$nulls":4},0]
[{"$nulls":4},0]
[{"$nulls":4},{"$f":"(C134*D134)","v":0}]
[{"$nulls":4},{"$f":"(C135*D135)","v":0}]
[{"$nulls":4},0]
[{"$nulls":4},0]
[{"$nulls":4},{"$f":"(C138*D138)","v":0}]
[{"$nulls":4},0]
[{"$nulls":4},0]
[null,"Summe (netto)",null,null,{"$f":"SUM(E18:E140)","v":0}]
[null,"Preise zzgl. gesetzl. MwSt. von 0%, 7% oder 19% je nach Leistungart und Leistungsempfänger."]
[null,"(Mit Angebotserzeugung bezeugen Sie, dass Sie die AGB`s des "]
[null,"Studierendenwerks Vorderpfalz gelesen haben und "]
[null,"diesen zustimmen.)"]
[null,null,"Datum , Unterschrift Auftraggeber"]
[null,"Überprüfung der Ware:"]
[null,"Aufgenommen:"]
[null,"Geprüft:"]
[null,"Abgerechnet:"]
[null,"Verteiler: Wirtschaftsabteilung, Küchenleitung, Cafeteria"]
[null,"Bitte beachten Sie das unser Mindestbestellwert bei 150 € liegt!!!"]
[null,"Liegt der Auftrag unter 150 € berechnen wir die Differenz!!!"]
[null,"Geschützte Dateien und PDF´s können nicht bearbeitet werden!!!"]
[null,"Cateringrückgaben ausschließlich an der Rampe hinter der Küche!"]